fUST/lending_fUST_20250724
["ID","MTS","AMOUNT","RATE_DAILY","PERIOD"]
[374521242,1753333843483,-1252.76,0.00020547,2]
[374521244,1753333843493,-460.0,0.00020547,2]
[374521246,1753333843503,-729.61,0.00020547,2]
[374521248,1753333843512,-460.0,0.00020547,2]
[374521250,1753333843522,-729.61,0.00020547,2]
[374521252,1753333843532,-529.45,0.00020547,2]
[374521254,1753333843543,-460.0,0.00020547,2]
[374521256,1753333843552,-460.0,0.00020547,2]
[374521258,1753333843562,-460.0,0.00020547,2]
[374521260,1753333843572,-460.0,0.00020547,2]
[374521262,1753333843583,-460.0,0.00020547,2]
[374521263,1753333843593,-1235.77,0.00020547,2]
[374521265,1753333843603,-460.0,0.00020547,2]
[374521267,1753333843612,-460.0,0.00020547,2]
[374521269,1753333843622,-199.07,0.00020547,2]
[374521271,1753333843632,-460.0,0.00020547,2]
[374521273,1753333843643,-460.0,0.00020547,2]
[374521275,1753333843652,-460.0,0.00020547,2]
[374521277,1753333843661,-663.45,0.00020547,2]
[374521279,1753333843671,-665.85,0.00020547,2]
[374521281,1753333843680,-460.0,0.00020547,2]
[374521283,1753333843694,-460.0,0.00020547,2]
[374521285,1753333843703,-2525.79,0.00020547,2]
[374521287,1753333843713,-817.43,0.00020547,2]
[374521289,1753333843722,-815.54,0.00020547,2]
[374521291,1753333843732,-460.0,0.00020547,2]
[374521293,1753333843742,-741.2,0.00020547,2]
[374521295,1753333843751,-591.51,0.00020547,2]
[374521297,1753333843761,-460.0,0.00020547,2]
[374521298,1753333843771,-508.75,0.00020547,2]
[374521300,1753333843781,-460.0,0.00020547,2]
[374521302,1753333843791,-460.0,0.00020547,2]
[374521304,1753333843800,-460.0,0.00020547,2]
[374521306,1753333843810,-460.0,0.00020547,2]
[374521308,1753333843819,-460.0,0.00020547,2]
[374521310,1753333843828,-600.57,0.00020547,2]
[374521312,1753333843838,-460.0,0.00020547,2]
[374521314,1753333843847,-1993.45,0.00020547,2]
[374521316,1753333843856,-474.61,0.00020568,2]
[374521318,1753333843865,-969.0,0.00020786,2]
[374521320,1753333843875,-407.0,0.00020786,2]
[374521323,1753333843884,-421.197,0.00020786,2]
[374521325,1753333843896,-460.0,0.00020821,2]
[374521326,1753333843906,-460.0,0.00020821,2]
[374521328,1753333843915,-460.0,0.00020821,2]
[374521329,1753333843924,-800.07,0.00020821,2]
[374521330,1753333843933,-460.0,0.00020821,2]
[374521331,1753333843942,-460.0,0.00020821,2]
[374521332,1753333843951,-2969.95,0.00020821,2]
[374521333,1753333843961,-460.0,0.00020821,2]
[374521334,1753333843971,-487.6,0.00020821,2]
[374521335,1753333843980,-467.28,0.00020821,2]
[374521336,1753333843989,-460.0,0.00020821,2]
[374521337,1753333843999,-460.0,0.00020821,2]
[374521338,1753333844008,-1252.76,0.00020821,2]
[374521339,1753333844018,-186.20839363,0.00020821,2]
[374521340,1753333844027,-729.61,0.00020821,2]
[374521341,1753333844036,-460.0,0.00020821,2]
[374521342,1753333844045,-729.61,0.00020821,2]
[374521343,1753333844054,-529.45,0.00020821,2]
[374521344,1753333844063,-460.0,0.00020821,2]
[374521345,1753333844073,-460.0,0.00020821,2]
[374521346,1753333844083,-460.0,0.00020821,2]
[374521347,1753333844092,-460.0,0.00020821,2]
[374521348,1753333844102,-460.0,0.00020821,2]
[374521349,1753333844112,-1235.77,0.00020821,2]
[374521350,1753333844122,-460.0,0.00020821,2]
[374521351,1753333844131,-460.0,0.00020821,2]
[374521352,1753333844143,-479.38,0.00020821,2]
[374521353,1753333844152,-519.04,0.00020821,2]
[374521354,1753333844161,-460.0,0.00020821,2]
[374521355,1753333844171,-663.45,0.00020821,2]
[374521356,1753333844181,-665.85,0.00020821,2]
[374521357,1753333844191,-384.17218482,0.00020821,2]
[374521358,1753333844200,-460.0,0.00020821,2]
[374521359,1753333844210,-2525.79,0.00020821,2]
[374521360,1753333844220,-817.43,0.00020821,2]
[374521361,1753333844229,-815.54,0.00020821,2]
[374521362,1753333844239,-460.0,0.00020821,2]
[374521363,1753333844248,-741.2,0.00020821,2]
[374521364,1753333844258,-591.51,0.00020821,2]
[374521365,1753333844268,-460.0,0.00020821,2]
[374521366,1753333844277,-508.75,0.00020821,2]
[374521367,1753333844287,-460.0,0.00020821,2]
[374521368,1753333844297,-460.0,0.00020821,2]
[374521369,1753333844307,-460.0,0.00020821,2]
[374521370,1753333844317,-460.0,0.00020821,2]
[374521371,1753333844327,-460.0,0.00020821,2]
[374521372,1753333844337,-600.57,0.00020821,2]
[374521373,1753333844346,-460.0,0.00020821,2]
[374521374,1753333844356,-1993.45,0.00020821,2]
[374521375,1753333844366,-442.014,0.00020826,2]
[374521376,1753333844375,-186.10269019,0.00020861,2]
[374521377,1753333844384,-2035.0,0.00020882,4]
[374521378,1753333844396,-420.0,0.00020899,2]
[374521379,1753333844405,-201.14642727,0.000209,4]
[374521380,1753333844415,-500.0,0.00020943,2]
[374521381,1753333844425,-195.77941,0.00020986,2]
[374521382,1753333844434,-153.893549,0.00021023,2]
[374521383,1753333844444,-201.14642713,0.00021048,4]
[374521384,1753333844453,-151.0,0.00021095,2]
[374521385,1753333844463,-460.0,0.00021095,2]
[374521386,1753333844472,-460.0,0.00021095,2]
[374521387,1753333844482,-460.0,0.00021095,2]
[374521388,1753333844492,-800.07,0.00021095,2]
[374521389,1753333844502,-460.0,0.00021095,2]
[374521390,1753333844511,-460.0,0.00021095,2]
[374521391,1753333844521,-2969.95,0.00021095,2]
[374521393,1753333844530,-460.0,0.00021095,2]
[374521394,1753333844540,-487.6,0.00021095,2]
[374521395,1753333844548,-467.28,0.00021095,2]
[374521396,1753333844557,-460.0,0.00021095,2]
[374521397,1753333844567,-460.0,0.00021095,2]
[374521398,1753333844575,-1252.76,0.00021095,2]
[374521399,1753333844584,-460.0,0.00021095,2]
[374521400,1753333844593,-729.61,0.00021095,2]
[374521401,1753333844602,-729.61,0.00021095,2]
[374521402,1753333844611,-529.45,0.00021095,2]
[374521403,1753333844621,-460.0,0.00021095,2]
[374521404,1753333844631,-460.0,0.00021095,2]
[374521405,1753333844641,-460.0,0.00021095,2]
[374521406,1753333844650,-460.0,0.00021095,2]
[374521407,1753333844660,-1235.77,0.00021095,2]
[374521408,1753333844669,-460.0,0.00021095,2]
[374521409,1753333844679,-460.0,0.00021095,2]
[374521410,1753333844691,-460.0,0.00021095,2]
[374521411,1753333844700,-663.45,0.00021095,2]
[374521412,1753333844710,-665.85,0.00021095,2]
[374521413,1753333844719,-460.0,0.00021095,2]
[374521414,1753333844729,-2525.79,0.00021095,2]
[374521415,1753333844739,-817.43,0.00021095,2]
[374521416,1753333844748,-815.54,0.00021095,2]
[374521417,1753333844757,-460.0,0.00021095,2]
[374521418,1753333844767,-741.2,0.00021095,2]
[374521419,1753333844776,-591.51,0.00021095,2]
[374521420,1753333844785,-460.0,0.00021095,2]
[374521421,1753333844794,-508.75,0.00021095,2]
[374521422,1753333844803,-460.0,0.00021095,2]
[374521423,1753333844812,-460.0,0.00021095,2]
[374521424,1753333844822,-460.0,0.00021095,2]
[374521425,1753333844831,-460.0,0.00021095,2]
[374521426,1753333844841,-460.0,0.00021095,2]
[374521427,1753333844851,-600.57,0.00021095,2]
[374521428,1753333844860,-460.0,0.00021095,2]
[374521429,1753333844870,-1993.45,0.00021095,2]
[374521430,1753333844879,-5465.89716836,0.00021166,2]
[374521431,1753333844890,-215.0738,0.00021166,2]
[374521432,1753333844899,-150.0,0.0002117,2]
[374521433,1753333844908,-150.0,0.0002117,2]
[374521434,1753333844917,-150.0,0.0002117,2]
[374521435,1753333844926,-150.0,0.0002117,2]
[374521436,1753333844935,-648.0,0.0002117,2]
[374521437,1753333844944,-201.14642713,0.00021196,4]
[374521438,1753333844953,-2035.0,0.00021247,4]
[374521439,1753333844962,-201.14642713,0.00021344,5]
[374521440,1753333844971,-460.0,0.00021369,2]
[374521441,1753333844980,-460.0,0.00021369,2]
[374521442,1753333844989,-460.0,0.00021369,2]
[374521443,1753333844999,-800.07,0.00021369,2]
[374521444,1753333845008,-606.16411685,0.00021369,2]
[374521445,1753333845017,-460.0,0.00021369,2]
[374521446,1753333845027,-2969.95,0.00021369,2]
[374521447,1753333845036,-460.0,0.00021369,2]
[374521448,1753333845046,-467.28,0.00021369,2]
[374521449,1753333845055,-460.0,0.00021369,2]
[374521450,1753333845064,-460.0,0.00021369,2]
[374521451,1753333845073,-1252.76,0.00021369,2]
[374521452,1753333845082,-729.61,0.00021369,2]
[374521453,1753333845092,-460.0,0.00021369,2]
[374521454,1753333845101,-729.61,0.00021369,2]
[374521455,1753333845110,-529.45,0.00021369,2]
[374521456,1753333845119,-460.0,0.00021369,2]
[374521457,1753333845128,-460.0,0.00021369,2]
[374521458,1753333845138,-460.0,0.00021369,2]
[374521459,1753333845148,-1235.77,0.00021369,2]
[374521460,1753333845157,-460.0,0.00021369,2]
[374521461,1753333845166,-460.0,0.00021369,2]
[374521462,1753333845175,-663.45,0.00021369,2]
[374521463,1753333845185,-665.85,0.00021369,2]
[374521464,1753333845194,-460.0,0.00021369,2]
[374521465,1753333845203,-2525.79,0.00021369,2]
[374521466,1753333845213,-817.43,0.00021369,2]
[374521467,1753333845222,-815.54,0.00021369,2]
[374521468,1753333845231,-460.0,0.00021369,2]
[374521469,1753333845240,-741.2,0.00021369,2]
[374521470,1753333845249,-591.51,0.00021369,2]
[374521471,1753333845259,-460.0,0.00021369,2]
[374521472,1753333845268,-508.75,0.00021369,2]
[374521473,1753333845277,-460.0,0.00021369,2]
[374521474,1753333845287,-460.0,0.00021369,2]
[374521475,1753333845296,-460.0,0.00021369,2]
[374521476,1753333845304,-460.0,0.00021369,2]
[374521477,1753333845314,-460.0,0.00021369,2]
[374521478,1753333845323,-600.57,0.00021369,2]
[374521479,1753333845332,-460.0,0.00021369,2]
[374521480,1753333845341,-1993.45,0.00021369,2]
[374521481,1753333845352,-500.0,0.00021442,2]
[374521482,1753333845361,-201.14642713,0.00021493,5]
[374521483,1753333845370,-2035.0,0.00021612,4]
[374521484,1753333845379,-403.64391722,0.00021621,2]
[374521485,1753333845390,-7367.63120359,0.00021621,2]
[374521486,1753333845399,-201.14642713,0.00021641,5]
[374521487,1753333845409,-460.0,0.00021643,2]
[374521488,1753333845418,-460.0,0.00021643,2]
[374521489,1753333845427,-172.81002256,0.00021643,2]
[374521490,1753333845436,-800.07,0.00021643,2]
[374521491,1753333845446,-2969.95,0.00021643,2]
[374521492,1753333845456,-460.0,0.00021643,2]
[374521493,1753333845466,-460.0,0.00021643,2]
[374521494,1753333845475,-467.28,0.00021643,2]
[374521495,1753333845484,-460.0,0.00021643,2]
[374521496,1753333845494,-1252.76,0.00021643,2]
[374521497,1753333845505,-729.61,0.00021643,2]
[374521498,1753333845514,-460.0,0.00021643,2]
[374521499,1753333845524,-729.61,0.00021643,2]
[374521500,1753333845534,-529.45,0.00021643,2]
[374521501,1753333845543,-172.1,0.00021643,2]
[374521502,1753333845552,-460.0,0.00021643,2]
[374521503,1753333845561,-460.0,0.00021643,2]
[374521504,1753333845572,-1235.77,0.00021643,2]
[374521505,1753333845581,-476.52981261,0.00021643,2]
[374521506,1753333845590,-460.0,0.00021643,2]
[374521507,1753333845600,-663.45,0.00021643,2]
[374521509,1753333845610,-665.85,0.00021643,2]
[374521511,1753333845619,-460.0,0.00021643,2]
[374521512,1753333845628,-2525.79,0.00021643,2]
[374521513,1753333845638,-817.43,0.00021643,2]
[374521514,1753333845648,-815.54,0.00021643,2]
[374521515,1753333845657,-460.0,0.00021643,2]
[374521516,1753333845666,-741.2,0.00021643,2]
[374521517,1753333845676,-591.51,0.00021643,2]
[374521518,1753333845687,-176.6143568,0.00021643,2]
[374521519,1753333845698,-508.75,0.00021643,2]
[374521520,1753333845707,-460.0,0.00021643,2]
[374521521,1753333845716,-460.0,0.00021643,2]
[374521522,1753333845726,-460.0,0.00021643,2]
[374521523,1753333845736,-460.0,0.00021643,2]
[374521524,1753333845745,-600.57,0.00021643,2]
[374521525,1753333845754,-1993.45,0.00021643,2]
[374521526,1753333845765,-186.10269019,0.00021752,2]
[374521527,1753333845775,-201.14642713,0.00021789,6]
[374521528,1753333845784,-460.0,0.00021917,2]
[374521529,1753333845794,-460.0,0.00021917,2]
[374521530,1753333845803,-800.07,0.00021917,2]
[374521531,1753333845812,-2969.95,0.00021917,2]
[374521532,1753333845822,-460.0,0.00021917,2]
[374521533,1753333845831,-460.0,0.00021917,2]
[374521534,1753333845840,-467.28,0.00021917,2]
[374521535,1753333845850,-460.0,0.00021917,2]
[374521536,1753333845859,-1252.76,0.00021917,2]
[374521537,1753333845868,-729.61,0.00021917,2]
[374521538,1753333845877,-460.0,0.00021917,2]
[374521539,1753333845886,-529.45,0.00021917,2]
[374521540,1753333845898,-460.0,0.00021917,2]
[374521541,1753333845907,-460.0,0.00021917,2]
[374521542,1753333845917,-1235.77,0.00021917,2]
[374521543,1753333845927,-460.0,0.00021917,2]
[374521544,1753333845936,-663.45,0.00021917,2]
[374521545,1753333845945,-665.85,0.00021917,2]
[374521546,1753333845955,-377.06671368,0.00021917,2]
[374521547,1753333846060,-2525.79,0.00021917,2]
[374521549,1753333846070,-817.43,0.00021917,2]
[374521550,1753333846080,-815.54,0.00021917,2]
[374521551,1753333846090,-460.0,0.00021917,2]
[374521552,1753333846100,-741.2,0.00021917,2]
[374521553,1753333846109,-591.51,0.00021917,2]
[374521554,1753333846119,-508.75,0.00021917,2]
[374521555,1753333846128,-460.0,0.00021917,2]
[374521556,1753333846139,-460.0,0.00021917,2]
[374521557,1753333846149,-460.0,0.00021917,2]
[374521558,1753333846158,-460.0,0.00021917,2]
[374521559,1753333846167,-600.57,0.00021917,2]
[374521560,1753333846176,-1993.45,0.00021917,2]
[374521561,1753333846186,-201.14642713,0.00021937,6]
[374521562,1753333846195,-2035.0,0.00021977,5]
[374521563,1753333846205,-153.893549,0.00021992,2]
[374521564,1753333846214,-153.893549,0.00021992,2]
[374521565,1753333846224,-2208.49,0.00022,7]
[374521566,1753333846233,-1134.19,0.00022,7]
[374521567,1753333846243,-151.0,0.00022,10]
[374521568,1753333846252,-156.0,0.00022,2]
[374521569,1753333846261,-201.14642713,0.00022085,6]
[374521570,1753333846271,-160.0,0.0002214,3]
[374521571,1753333846280,-460.0,0.00022191,2]
[374521572,1753333846290,-460.0,0.00022191,2]
[374521573,1753333846300,-800.07,0.00022191,2]
[374521574,1753333846310,-2969.95,0.00022191,2]
[374521575,1753333846319,-460.0,0.00022191,2]
[374521576,1753333846329,-583.38801938,0.00022191,2]
[374521577,1753333846339,-467.28,0.00022191,2]
[374521578,1753333846348,-306.14557208,0.00022191,2]
[374521579,1753333846357,-1252.76,0.00022191,2]
[374521580,1753333846368,-729.61,0.00022191,2]
[374521581,1753333846378,-460.0,0.00022191,2]
[374521582,1753333846387,-529.45,0.00022191,2]
[374521583,1753333846397,-460.0,0.00022191,2]
[374521584,1753333846407,-460.0,0.00022191,2]
[374521585,1753333846417,-1235.77,0.00022191,2]
[374521586,1753333846426,-460.0,0.00022191,2]
[374521587,1753333846436,-663.45,0.00022191,2]
[374521588,1753333846445,-665.85,0.00022191,2]
[374521589,1753333846454,-2525.79,0.00022191,2]
[374521590,1753333846464,-817.43,0.00022191,2]
[374521591,1753333846473,-815.54,0.00022191,2]
[374521592,1753333846483,-460.0,0.00022191,2]
[374521593,1753333846493,-741.2,0.00022191,2]
[374521594,1753333846502,-591.51,0.00022191,2]
[374521595,1753333846511,-508.75,0.00022191,2]
[374521596,1753333846521,-460.0,0.00022191,2]
[374521597,1753333846531,-460.0,0.00022191,2]
[374521598,1753333846541,-411.26203036,0.00022191,2]
[374521600,1753333846550,-460.0,0.00022191,2]
[374521601,1753333846559,-600.57,0.00022191,2]
[374521603,1753333846568,-1993.45,0.00022191,2]
[374521605,1753333846578,-201.14642713,0.00022233,6]
[374521607,1753333846587,-2035.0,0.00022343,5]
[374521608,1753333846596,-151.733625,0.00022465,7]
[374521610,1753333846606,-460.0,0.00022465,2]
[374521612,1753333846615,-259.89194607,0.00022465,2]
[374521613,1753333846625,-800.07,0.00022465,2]
[374521614,1753333846634,-2969.95,0.00022465,2]
[374521615,1753333846646,-176.59076216,0.00022465,2]
[374521616,1753333846655,-467.28,0.00022465,2]
[374521617,1753333846665,-1697.79,0.00022465,2]
[374521618,1753333846674,-1252.76,0.00022465,2]
[374521619,1753333846683,-729.61,0.00022465,2]
[374521620,1753333846696,-460.0,0.00022465,2]
[374521622,1753333846706,-529.45,0.00022465,2]
[374521623,1753333846715,-460.0,0.00022465,2]
[374521625,1753333846725,-460.0,0.00022465,2]
[374521626,1753333846737,-1235.77,0.00022465,2]
[374521627,1753333846746,-460.0,0.00022465,2]
[374521628,1753333846755,-663.45,0.00022465,2]
[374521629,1753333846766,-665.85,0.00022465,2]
[374521630,1753333846776,-2525.79,0.00022465,2]
[374521631,1753333846785,-817.43,0.00022465,2]
[374521632,1753333846794,-815.54,0.00022465,2]
[374521633,1753333846803,-460.0,0.00022465,2]
[374521634,1753333846812,-741.2,0.00022465,2]
[374521635,1753333846822,-591.51,0.00022465,2]
[374521636,1753333846831,-508.75,0.00022465,2]
[374521637,1753333846840,-460.0,0.00022465,2]
[374521638,1753333846851,-460.0,0.00022465,2]
[374521639,1753333846860,-460.0,0.00022465,2]
[374521640,1753333846869,-600.57,0.00022465,2]
[374521641,1753333846879,-1993.45,0.00022465,2]
[374521642,1753333846890,-151.0,0.000225,10]
[374521643,1753333846900,-223.0315306,0.00022535,2]
[374521644,1753333846909,-500.0,0.00022538,2]
[374521645,1753333846918,-619.703551,0.00022603,2]
[374521646,1753333846927,-186.10269019,0.00022644,2]
[374521647,1753333846937,-511.09,0.00022658,4]
[374521648,1753333846946,-684.6,0.00022658,2]
[374521649,1753333846955,-150.79687283,0.00022679,2]
[374521650,1753333846964,-474.32336944,0.00022679,2]
[374521651,1753333846974,-517.66,0.00022682,2]
[374521652,1753333846983,-2035.0,0.00022708,5]
[374521653,1753333846992,-307.22359751,0.00022739,2]
[374521654,1753333847002,-800.07,0.00022739,2]
[374521656,1753333847011,-2969.95,0.00022739,2]
[374521657,1753333847020,-467.28,0.00022739,2]
[374521658,1753333847029,-1252.76,0.00022739,2]
[374521660,1753333847039,-729.61,0.00022739,2]
[374521661,1753333847048,-460.0,0.00022739,2]
[374521662,1753333847057,-529.45,0.00022739,2]
[374521663,1753333847066,-460.0,0.00022739,2]
[374521664,1753333847075,-460.0,0.00022739,2]
[374521665,1753333847084,-1235.77,0.00022739,2]
[374521666,1753333847094,-460.0,0.00022739,2]
[374521667,1753333847103,-663.45,0.00022739,2]
[374521668,1753333847112,-665.85,0.00022739,2]
[374521669,1753333847122,-2525.79,0.00022739,2]
[374521670,1753333847131,-817.43,0.00022739,2]
[374521671,1753333847142,-815.54,0.00022739,2]
[374521672,1753333847152,-460.0,0.00022739,2]
[374521673,1753333847162,-741.2,0.00022739,2]
[374521674,1753333847171,-591.51,0.00022739,2]
[374521675,1753333847181,-508.75,0.00022739,2]
[374521676,1753333847190,-460.0,0.00022739,2]
[374521677,1753333847199,-460.0,0.00022739,2]
[374521678,1753333847209,-460.0,0.00022739,2]
[374521679,1753333847218,-600.57,0.00022739,2]
[374521680,1753333847227,-1993.45,0.00022739,2]
[374521681,1753333847236,-403.64391722,0.00022756,2]
[374521682,1753333847246,-684.6,0.00022758,2]
[374521683,1753333847255,-587.0,0.00022776,2]
[374521684,1753333847264,-517.66,0.00022782,3]
[374521685,1753333847273,-168.0,0.00022799,2]
[374521686,1753333847282,-153.893549,0.000228,3]
[374521687,1753333847291,-153.893549,0.000228,3]
[374521688,1753333847301,-339.0,0.00022852,2]
[374521689,1753333847310,-684.6,0.00022858,6]
[374521690,1753333847320,-160.0,0.00022869,4]
[374521691,1753333847328,-517.66,0.00022882,7]
[374521692,1753333847338,-3000.0,0.000229,2]
[374521693,1753333847348,-3000.0,0.0002291,2]
[374521694,1753333847357,-3000.0,0.0002292,2]
[374521695,1753333847367,-3000.0,0.0002293,2]
[374521696,1753333847376,-3000.0,0.0002294,2]
[374521697,1753333847386,-3000.0,0.0002295,2]
[374521698,1753333847397,-684.6,0.00022958,3]
[374521699,1753333847406,-3000.0,0.0002296,2]
[374521700,1753333847415,-153.893549,0.00022962,2]
[374521701,1753333847424,-153.893549,0.00022962,2]
[374521702,1753333847433,-3000.0,0.0002297,2]
[374521703,1753333847443,-3000.0,0.0002298,2]
[374521704,1753333847451,-517.66,0.00022982,7]
[374521705,1753333847461,-3000.0,0.0002299,2]
[374521706,1753333847470,-3000.0,0.00023,2]
[374521707,1753333847479,-1388.76,0.00023,2]
[374521708,1753333847489,-1134.19,0.00023,7]
[374521709,1753333847499,-151.0,0.00023,9]
[374521710,1753333847508,-150.0,0.00023,5]
[374521711,1753333847517,-150.0,0.00023,10]
[374521712,1753333847527,-153.893549,0.00023,7]
[374521713,1753333847536,-153.893549,0.00023,7]
[374521714,1753333847545,-160.0,0.00023,2]
[374521715,1753333847554,-3000.0,0.0002301,2]
[374521716,1753333847563,-800.07,0.00023013,2]
[374521717,1753333847573,-2969.95,0.00023013,2]
[374521718,1753333847582,-467.28,0.00023013,2]
[374521719,1753333847591,-1252.76,0.00023013,2]
[374521720,1753333847600,-460.0,0.00023013,2]
[374521721,1753333847610,-529.45,0.00023013,2]
[374521722,1753333847619,-460.0,0.00023013,2]
[374521723,1753333847628,-460.0,0.00023013,2]
[374521724,1753333847639,-1235.77,0.00023013,2]
[374521725,1753333847648,-460.0,0.00023013,2]
[374521726,1753333847657,-663.45,0.00023013,2]
[374521727,1753333847667,-665.85,0.00023013,2]
[374521728,1753333847676,-2525.79,0.00023013,2]
[374521729,1753333847688,-817.43,0.00023013,2]
[374521730,1753333847699,-815.54,0.00023013,2]
[374521731,1753333847709,-460.0,0.00023013,2]
[374521732,1753333847718,-741.2,0.00023013,2]
[374521733,1753333847727,-591.51,0.00023013,2]
[374521734,1753333847738,-508.75,0.00023013,2]
[374521735,1753333847748,-460.0,0.00023013,2]
[374521736,1753333847758,-460.0,0.00023013,2]
[374521737,1753333847771,-460.0,0.00023013,2]
[374521738,1753333847781,-600.57,0.00023013,2]
[374521739,1753333847791,-1993.45,0.00023013,2]
[374521740,1753333847801,-156.0,0.00023014,7]
[374521741,1753333847810,-3000.0,0.0002302,2]
[374521742,1753333847819,-3000.0,0.0002303,2]
[374521743,1753333847828,-3000.0,0.0002304,2]
[374521744,1753333847837,-3000.0,0.0002305,2]
[374521745,1753333847846,-684.6,0.00023058,5]
[374521746,1753333847856,-3000.0,0.0002306,2]
[374521747,1753333847865,-3000.0,0.0002307,2]
[374521748,1753333847875,-2035.0,0.00023073,6]
[374521749,1753333847884,-3000.0,0.0002308,2]
[374521750,1753333847895,-517.66,0.00023082,2]
[374521751,1753333847905,-3000.0,0.0002309,2]
[374521752,1753333847914,-3000.0,0.000231,2]
[374521753,1753333847924,-151.0,0.000231,6]
[374521754,1753333847933,-2208.49,0.000231,7]
[374521755,1753333847942,-168.0,0.00023104,2]
[374521756,1753333847951,-3000.0,0.0002311,2]
[374521757,1753333847961,-3000.0,0.0002312,2]
[374521758,1753333847970,-3000.0,0.0002313,2]
[374521759,1753333847979,-3000.0,0.0002314,2]
[374521760,1753333847988,-3000.0,0.0002315,2]
[374521761,1753333847998,-684.6,0.00023158,7]
[374521762,1753333848007,-3000.0,0.0002316,2]
[374521763,1753333848016,-3000.0,0.0002317,2]
[374521764,1753333848026,-168.0,0.00023174,2]
[374521765,1753333848035,-3000.0,0.0002318,2]
[374521766,1753333848044,-517.66,0.00023182,6]
[374521767,1753333848054,-3000.0,0.0002319,2]
[374521768,1753333848063,-3000.0,0.000232,2]
[374521769,1753333848073,-3000.0,0.0002321,2]
[374521770,1753333848083,-3428.698233,0.0002322,2]
[374521771,1753333848093,-2157.0,0.00023238,2]
[374521772,1753333848103,-474.61,0.0002324,2]
[374521773,1753333848112,-684.6,0.00023258,7]
[374521774,1753333848121,-517.68780521,0.00023282,7]
[374521775,1753333848131,-800.07,0.00023287,2]
[374521776,1753333848141,-2969.95,0.00023287,2]
[374521777,1753333848151,-467.28,0.00023287,2]
[374521778,1753333848161,-1252.76,0.00023287,2]
[374521779,1753333848170,-460.0,0.00023287,2]
[374521780,1753333848180,-529.45,0.00023287,2]
[374521781,1753333848189,-460.0,0.00023287,2]
[374521782,1753333848198,-460.0,0.00023287,2]
[374521783,1753333848208,-846.56486772,0.00023287,2]
[374521784,1753333848230,-389.20513228,0.00023287,2]
[374521785,1753333848240,-460.0,0.00023287,2]
[374521786,1753333848249,-663.45,0.00023287,2]
[374521787,1753333848259,-665.85,0.00023287,2]
[374521788,1753333848268,-2525.79,0.00023287,2]
[374521789,1753333848279,-817.43,0.00023287,2]
[374521790,1753333848289,-815.54,0.00023287,2]
[374521791,1753333848299,-310.24964514,0.00023287,2]
[374521792,1753333848309,-741.2,0.00023287,2]
[374521793,1753333848318,-591.51,0.00023287,2]
[374521794,1753333848328,-508.75,0.00023287,2]
[374521795,1753333848337,-460.0,0.00023287,2]
[374521796,1753333848347,-460.0,0.00023287,2]
[374521797,1753333848356,-460.0,0.00023287,2]